[Event "10th Iberoamericano-ch 2024"]
[Site "Linares"]
[Date "2024.09.30"]
[Round "8.10"]
[White "Rodriguez Vila, Andres"]
[Black "Mingarro Carceller, Sergi"]
[Result "0-1"]
[ECO "A13"]
[WhiteElo "2417"]
[BlackElo "2273"]
[Annotator "RC"]
[PlyCount "82"]
[EventDate "2024.09.25"]
[EventType "swiss"]
[EventCountry "ESP"]
[SourceTitle "playchess.com"]
[Source "ChessBase"]
[SourceQuality "1"]
[TimeControl "5400+30"]

1. c4 {[%emt 0:02:10]} Nf6 {[%emt 0:00:40]} 2. g3 {[%emt 0:00:37]} e6 {[%emt 0:00:18]} 3. Bg2 {[%emt 0:00:20]} d5 {[%emt 0:00:08]} 4. Nf3 {[%emt 0:00:22]} dxc4 {[%emt 0:00:27]} 5. O-O {[%emt 0:00:22]} a6 {[%emt 0:02:02]} 6. a4 {[%emt 0:00:14]} Nc6 {[%emt 0:02:05]} 7. Na3 {[%emt 0:01:14]} Bxa3 {[%emt 0:06:25]} 8. Rxa3 {[%emt 0:00:06]} e5 {[%emt 0:06:55]} 9. Qc2 {[%emt 0:00:43]} Be6 {[%emt 0:02:36]} 10. d3 {[%emt 0:13:18]} cxd3 {[%emt 0:05:08]} 11. Rxd3 {[%emt 0:00:31]} Qe7 {[%emt 0:00:53]} 12. Rc3 {[%emt 0:00:17]} O-O {[%emt 0:10:17]} 13. Be3 {[%emt 0:00:09]} Rfd8 {[%emt 0:03:29]} 14. Bc5 {[%emt 0:02:12]} Qe8 {[%emt 0:04:03]} 15. Ng5 {[%emt 0:00:14]} Bd5 {[%emt 0:05:27]} 16. e4 {[%emt 0:03:01]} Be6 {[%emt 0:03:48]} 17. Nxe6 {[%emt 0:05:35]} Qxe6 {[%emt 0:00:12]} 18. f4 {[%emt 0:05:20]} Nd4 {[%emt 0:14:22]} 19. Bxd4 {[%emt 0:00:41]} exd4 {[%emt 0:00:01]} 20. Rxc7 {[%emt 0:00:42]} d3 {[%emt 0:00:09]} 21. Qc5 {[%emt 0:04:01]} Nxe4 {[%emt 0:03:04]} 22. Qe3 {[%emt 0:02:01]} f5 {[%emt 0:02:23]} 23. g4 {[%emt 0:12:07]} d2 {[%emt 0:04:31]} 24. gxf5 {[%emt 0:03:46]} Qd6 {[%emt 0:00:23]} 25. Bxe4 {[%emt 0:14:29]} Qxc7 {[%emt 0:00:14]} 26. Rd1 {[%emt 0:00:06]} Qd6 {[%emt 0:02:39]} 27. Kf2 {[%emt 0:01:21]} Rd7 {[%emt 0:01:34]} 28. Bf3 {[%emt 0:00:48]} Rad8 {[%emt 0:01:23]} 29. Qe6+ {[%emt 0:01:28]} Kh8 {[%emt 0:00:39]} 30. Qxd6 {[%emt 0:00:06]} Rxd6 {[%emt 0:00:05]} 31. Bxb7 {[%emt 0:00:13]} Rb8 {[%emt 0:00:39]} 32. Bf3 {[%emt 0:02:46]} Rxb2 {[%emt 0:00:27]} 33. Ke3 {[%emt 0:00:10]} Kg8 {[%emt 0:01:07]} 34. Ke4 {[%emt 0:00:47]} Kf8 {[%emt 0:03:47]} 35. Ke5 {[%emt 0:00:05]} Rd3 {[%emt 0:00:34]} 36. Bg4 {[%emt 0:02:27]} Re3+ {[%emt 0:01:40]} 37. Kd4 {[%emt 0:00:01]} Re1 {[%emt 0:00:23]} 38. Kc3 {[%emt 0:00:10]} Ra2 {[%emt 0:03:28]} 39. h3 {[%emt 0:01:27]} Ke7 {[%emt 0:00:46]} 40. Rxd2 {[%emt 0:01:00]} Rxd2 {[%emt 0:00:06]} 41. Kxd2 {[%emt 0:00:08]} Re4 {[%emt 0:00:05]} 0-1

[Event "10th Iberoamericano-ch 2024"]
[Site "Linares"]
[Date "2024.09.30"]
[Round "8.11"]
[White "Zambrana, Osvaldo"]
[Black "Ladron De Guevara Pinto, Paolo"]
[Result "0-1"]
[ECO "C55"]
[WhiteElo "2405"]
[BlackElo "2371"]
[Annotator "RC"]
[PlyCount "116"]
[EventDate "2024.09.25"]
[EventType "swiss"]
[EventCountry "ESP"]
[SourceTitle "playchess.com"]
[Source "ChessBase"]
[SourceQuality "1"]
[TimeControl "5400+30"]

1. e4 {[%emt 0:00:09]} e5 {[%emt 0:00:10]} 2. Nf3 {[%emt 0:00:22]} Nc6 {[%emt 0:00:06]} 3. Bc4 {[%emt 0:00:24]} Nf6 {[%emt 0:00:15]} 4. d3 {[%emt 0:00:30]} Be7 {[%emt 0:00:14]} 5. O-O {[%emt 0:00:55]} O-O {[%emt 0:00:14]} 6. Re1 {[%emt 0:00:32]} d6 {[%emt 0:00:31]} 7. a4 {[%emt 0:01:15]} h6 {[%emt 0:01:46]} 8. c3 {[%emt 0:00:47]} a5 {[%emt 0:03:31]} 9. Nbd2 {[%emt 0:00:49]} Be6 {[%emt 0:01:00]} 10. Bxe6 {[%emt 0:03:11]} fxe6 {[%emt 0:00:19]} 11. Qb3 {[%emt 0:00:03]} Qd7 {[%emt 0:00:09]} 12. Nf1 {[%emt 0:01:31]} b6 {[%emt 0:00:26]} 13. Qb5 {[%emt 0:00:25]} Na7 {[%emt 0:13:23]} 14. Qb3 {[%emt 0:02:59]} Nc6 {[%emt 0:03:23]} 15. Ng3 {[%emt 0:00:06]} Rf7 {[%emt 0:02:02]} 16. h3 {[%emt 0:03:23]} Raf8 {[%emt 0:02:57]} 17. Be3 {[%emt 0:00:28]} d5 {[%emt 0:25:31]} 18. Qb5 {[%emt 0:11:55]} Bd6 {[%emt 0:09:19]} 19. Rab1 {[%emt 0:02:54]} d4 {[%emt 0:07:52]} 20. Bd2 {[%emt 0:05:44]} Bc5 {[%emt 0:07:28]} 21. Re2 {[%emt 0:07:57]} Ne8 {[%emt 0:00:34]} 22. cxd4 {[%emt 0:13:20]} Nd6 {[%emt 0:06:53]} 23. Qxc6 {[%emt 0:05:36]} Qxc6 {[%emt 0:00:18]} 24. Nxe5 {[%emt 0:00:02]} Qxa4 {[%emt 0:01:37]} 25. dxc5 {[%emt 0:00:11]} Nb5 {[%emt 0:01:17]} 26. Nxf7 {[%emt 0:00:18]} Rxf7 {[%emt 0:00:03]} 27. cxb6 {[%emt 0:08:36]} cxb6 {[%emt 0:00:04]} 28. Be3 {[%emt 0:00:06]} Nd4 {[%emt 0:00:16]} 29. Rd2 {[%emt 0:00:02]} Qb4 {[%emt 0:04:51]} 30. Rc1 {[%emt 0:00:57]} b5 {[%emt 0:00:03]} 31. Rc8+ {[%emt 0:03:14]} Kh7 {[%emt 0:00:05]} 32. h4 {[%emt 0:00:40]} a4 {[%emt 0:05:40]} 33. h5 {[%emt 0:00:07]} e5 {[%emt 0:00:15]} 34. Re8 {[%emt 0:07:47]} Re7 {[%emt 0:00:28]} 35. Rc8 {[%emt 0:01:40]} Qa5 {[%emt 0:00:56]} 36. Rc5 {[%emt 0:12:36]} Nb3 {[%emt 0:00:21]} 37. Rdc2 {[%emt 0:00:15]} Nxc5 {[%emt 0:00:03]} 38. Rxc5 {[%emt 0:00:07]} Qa6 {[%emt 0:01:23]} 39. Nf5 {[%emt 0:00:20]} Rd7 {[%emt 0:00:30]} 40. Bd2 {[%emt 0:07:35]} a3 {[%emt 0:00:51]} 41. bxa3 {[%emt 0:00:27]} Qxa3 {[%emt 0:00:01]} 42. Rxb5 {[%emt 0:00:15]} Qxd3 {[%emt 0:00:03]} 43. Rb2 {[%emt 0:00:17]} Qa3 {[%emt 0:01:09]} 44. Rb8 {[%emt 0:01:10]} Qa7 {[%emt 0:00:40]} 45. Rf8 {[%emt 0:00:17]} Rxd2 {[%emt 0:00:19]} 46. Nh4 {[%emt 0:00:02]} Qa4 {[%emt 0:01:14]} 47. Kh2 {[%emt 0:01:09]} Qd1 {[%emt 0:00:16]} 48. f3 {[%emt 0:00:11]} Rd8 {[%emt 0:01:05]} 49. Rf5 {[%emt 0:00:21]} Qc1 {[%emt 0:01:47]} 50. Kh3 {[%emt 0:00:24]} Rd1 {[%emt 0:00:41]} 51. Kg4 {[%emt 0:00:54]} Rh1 {[%emt 0:00:28]} 52. g3 {[%emt 0:00:30]} Qf1 {[%emt 0:00:36]} 53. Rxe5 {[%emt 0:00:24]} Qh3+ {[%emt 0:00:50]} 54. Kf4 {[%emt 0:00:02]} Rg1 {[%emt 0:00:18]} 55. Nf5 {[%emt 0:00:01]} Qxh5 {[%emt 0:00:15]} 56. Ne7 {[%emt 0:01:11]} Qf7+ {[%emt 0:00:10]} 57. Nf5 {[%emt 0:00:20]} Qc7 {[%emt 0:00:02]} 58. Ne7 {[%emt 0:00:14]} Rf1 {[%emt 0:00:11]} 0-1

[Event "10th Iberoamericano-ch 2024"]
[Site "Linares"]
[Date "2024.09.30"]
[Round "8.12"]
[White "Romero Calduch, Sergio"]
[Black "Matamoros Franco, Carlos S."]
[Result "1/2-1/2"]
[ECO "E91"]
[WhiteElo "2276"]
[BlackElo "2404"]
[Annotator "RC"]
[PlyCount "58"]
[EventDate "2024.09.25"]
[EventType "swiss"]
[EventCountry "ESP"]
[SourceTitle "playchess.com"]
[Source "ChessBase"]
[SourceQuality "1"]
[TimeControl "5400+30"]

1. d4 {[%emt 0:00:32]} Nf6 {[%emt 0:00:25]} 2. c4 {[%emt 0:00:17]} g6 {[%emt 0:00:20]} 3. Nc3 {[%emt 0:00:40]} Bg7 {[%emt 0:00:14]} 4. e4 {[%emt 0:00:17]} d6 {[%emt 0:00:12]} 5. Nf3 {[%emt 0:00:15]} O-O {[%emt 0:00:25]} 6. Be2 {[%emt 0:00:25]} c5 {[%emt 0:03:52]} 7. d5 {[%emt 0:01:02]} e6 {[%emt 0:01:06]} 8. O-O {[%emt 0:00:34]} Re8 {[%emt 0:00:27]} 9. h3 {[%emt 0:03:53]} exd5 {[%emt 0:11:43]} 10. exd5 {[%emt 0:01:19]} Bf5 {[%emt 0:05:10]} 11. Nh4 {[%emt 0:07:51]} Bd7 {[%emt 0:06:29]} 12. Bd3 {[%emt 0:09:36]} Ng4 {[%emt 0:24:09]} 13. Nf3 {[%emt 0:05:41]} Ne5 {[%emt 0:01:49]} 14. Nxe5 {[%emt 0:00:43]} Bxe5 {[%emt 0:00:05]} 15. Bd2 {[%emt 0:28:19]} Na6 {[%emt 0:02:22]} 16. Qc1 {[%emt 0:07:16]} f5 {[%emt 0:05:20]} 17. f4 {[%emt 0:04:03]} Bd4+ {[%emt 0:00:54]} 18. Kh2 {[%emt 0:00:29]} Nb4 {[%emt 0:09:32]} 19. Bb1 {[%emt 0:00:59]} Qf6 {[%emt 0:00:36]} 20. a3 {[%emt 0:00:57]} Na6 {[%emt 0:00:02]} 21. Bd3 {[%emt 0:01:04]} Re7 {[%emt 0:03:59]} 22. Qc2 {[%emt 0:03:33]} Rae8 {[%emt 0:08:08]} 23. Rae1 {[%emt 0:15:52]} Be3 {[%emt 0:00:07]} 24. Bxe3 {[%emt 0:03:02]} Rxe3 {[%emt 0:00:11]} 25. Rxe3 {[%emt 0:00:38]} Rxe3 {[%emt 0:00:05]} 26. Nd1 {[%emt 0:00:56]} Re8 {[%emt 0:01:45]} 27. Qc3 {[%emt 0:02:03]} Kf7 {[%emt 0:06:31]} 28. Qxf6+ {[%emt 0:01:10]} Kxf6 {[%emt 0:00:05]} 29. Nc3 {[%emt 0:00:21]} Nc7 {[%emt 0:00:26]} 1/2-1/2

[Event "10th Iberoamericano-ch 2024"]
[Site "Linares"]
[Date "2024.09.30"]
[Round "8.13"]
[White "Moral Garcia, Serafin"]
[Black "Labiano Hernandez, Juan"]
[Result "1-0"]
[ECO "B14"]
[WhiteElo "2262"]
[BlackElo "2398"]
[Annotator "RC"]
[PlyCount "101"]
[EventDate "2024.09.25"]
[EventType "swiss"]
[EventCountry "ESP"]
[SourceTitle "playchess.com"]
[Source "ChessBase"]
[SourceQuality "1"]
[TimeControl "5400+30"]

1. e4 {[%emt 0:00:02]} c6 {[%emt 0:00:16]} 2. d4 {[%emt 0:00:10]} d5 {[%emt 0:00:05]} 3. exd5 {[%emt 0:00:13]} cxd5 {[%emt 0:00:06]} 4. c4 {[%emt 0:00:34]} Nf6 {[%emt 0:00:37]} 5. Nc3 {[%emt 0:00:07]} g6 {[%emt 0:00:12]} 6. cxd5 {[%emt 0:00:16]} Bg7 {[%emt 0:00:06]} 7. Bb5+ {[%emt 0:00:25]} Nbd7 {[%emt 0:00:06]} 8. d6 {[%emt 0:00:10]} O-O {[%emt 0:00:13]} 9. dxe7 {[%emt 0:00:40]} Qxe7+ {[%emt 0:01:00]} 10. Nge2 {[%emt 0:00:19]} a6 {[%emt 0:01:36]} 11. Bd3 {[%emt 0:01:14]} b5 {[%emt 0:00:08]} 12. O-O {[%emt 0:01:21]} Bb7 {[%emt 0:00:11]} 13. Re1 {[%emt 0:01:26]} Rfe8 {[%emt 0:04:10]} 14. Bf4 {[%emt 0:05:48]} b4 {[%emt 0:17:46]} 15. Na4 {[%emt 0:02:23]} Qe6 {[%emt 0:09:31]} 16. Rc1 {[%emt 0:05:53]} Nh5 {[%emt 0:12:36]} 17. Bc4 {[%emt 0:07:37]} Qf5 {[%emt 0:01:21]} 18. Bg3 {[%emt 0:01:12]} Bh6 {[%emt 0:01:52]} 19. Ra1 {[%emt 0:03:53]} Qe4 {[%emt 0:07:23]} 20. f3 {[%emt 0:01:04]} Be3+ {[%emt 0:00:25]} 21. Bf2 {[%emt 0:07:32]} Bxf2+ {[%emt 0:04:17]} 22. Kxf2 {[%emt 0:00:52]} Qh4+ {[%emt 0:05:40]} 23. Kg1 {[%emt 0:01:15]} Re3 {[%emt 0:00:47]} 24. Qd2 {[%emt 0:10:14]} Rae8 {[%emt 0:01:52]} 25. b3 {[%emt 0:03:46]} Nf4 {[%emt 0:07:28]} 26. Ng3 {[%emt 0:02:38]} Nxg2 {[%emt 0:07:54]} 27. Kxg2 {[%emt 0:02:51]} Bxf3+ {[%emt 0:02:12]} 28. Kg1 {[%emt 0:00:24]} Rxe1+ {[%emt 0:01:14]} 29. Rxe1 {[%emt 0:01:29]} Rxe1+ {[%emt 0:00:06]} 30. Qxe1 {[%emt 0:00:09]} Qxd4+ {[%emt 0:00:07]} 31. Qf2 {[%emt 0:00:09]} Qd1+ {[%emt 0:01:30]} 32. Nf1 {[%emt 0:03:11]} Ne5 {[%emt 0:00:22]} 33. Nb2 {[%emt 0:01:36]} Qd6 {[%emt 0:04:27]} 34. Nd3 {[%emt 0:02:20]} Nxd3 {[%emt 0:02:38]} 35. Qxf3 {[%emt 0:00:20]} Ne5 {[%emt 0:00:06]} 36. Qe4 {[%emt 0:02:13]} Kg7 {[%emt 0:01:43]} 37. Ne3 {[%emt 0:02:30]} Qc5 {[%emt 0:01:37]} 38. Kg2 {[%emt 0:01:16]} f5 {[%emt 0:00:45]} 39. Qf4 {[%emt 0:01:13]} Qa5 {[%emt 0:03:58]} 40. Qd4 {[%emt 0:02:48]} Kh6 {[%emt 0:01:24]} 41. Qh4+ {[%emt 0:09:58]} Kg7 {[%emt 0:00:02]} 42. Qe7+ {[%emt 0:00:12]} Kh6 {[%emt 0:00:02]} 43. Bg8 {[%emt 0:00:26]} Qxa2+ {[%emt 0:01:20]} 44. Kh3 {[%emt 0:00:19]} Nf3 {[%emt 0:00:19]} 45. Nxf5+ {[%emt 0:00:46]} Kh5 {[%emt 0:00:20]} 46. Ng3+ {[%emt 0:00:27]} Kh6 {[%emt 0:00:02]} 47. Qf8+ {[%emt 0:00:07]} Kg5 {[%emt 0:00:06]} 48. Ne4+ {[%emt 0:00:30]} Kh5 {[%emt 0:00:07]} 49. Qxf3+ {[%emt 0:00:13]} Kh6 {[%emt 0:00:02]} 50. Qf7 {[%emt 0:00:12]} Qxb3+ {[%emt 0:00:35]} 51. Qxb3 {[%emt 0:00:02]} 1-0

[Event "10th Iberoamericano-ch 2024"]
[Site "Linares"]
[Date "2024.09.30"]
[Round "8.14"]
[White "Goncalves, Samuel Jesus P"]
[Black "Leiva, Gianmarco"]
[Result "0-1"]
[ECO "C54"]
[WhiteElo "2169"]
[BlackElo "2389"]
[Annotator "RC"]
[PlyCount "120"]
[EventDate "2024.09.25"]
[EventType "swiss"]
[EventCountry "ESP"]
[SourceTitle "playchess.com"]
[Source "ChessBase"]
[SourceQuality "1"]
[TimeControl "5400+30"]

1. e4 {[%emt 0:02:05]} e5 {[%emt 0:14:44]} 2. Nf3 {[%emt 0:00:19]} Nc6 {[%emt 0:00:09]} 3. Bc4 {[%emt 0:00:13]} Nf6 {[%emt 0:01:34]} 4. d3 {[%emt 0:00:10]} Bc5 {[%emt 0:01:18]} 5. O-O {[%emt 0:00:11]} d6 {[%emt 0:01:59]} 6. c3 {[%emt 0:00:12]} O-O {[%emt 0:08:32]} 7. Re1 {[%emt 0:00:24]} Bb6 {[%emt 0:03:09]} 8. a4 {[%emt 0:03:59]} a6 {[%emt 0:00:56]} 9. h3 {[%emt 0:02:02]} Ne7 {[%emt 0:06:05]} 10. d4 {[%emt 0:16:15]} exd4 {[%emt 0:09:05]} 11. Bg5 {[%emt 0:00:19]} Ng6 {[%emt 0:02:36]} 12. cxd4 {[%emt 0:00:43]} h6 {[%emt 0:00:07]} 13. Bxf6 {[%emt 0:06:44]} Qxf6 {[%emt 0:00:03]} 14. Nc3 {[%emt 0:01:41]} c6 {[%emt 0:00:01]} 15. e5 {[%emt 0:02:37]} Qd8 {[%emt 0:01:53]} 16. Bb3 {[%emt 0:10:17]} d5 {[%emt 0:22:17]} 17. Bc2 {[%emt 0:00:59]} Nh4 {[%emt 0:00:01]} 18. Ra3 {[%emt 0:02:57]} g6 {[%emt 0:02:38]} 19. Ne2 {[%emt 0:01:22]} Ba5 {[%emt 0:00:44]} 20. Rf1 {[%emt 0:00:25]} Bb4 {[%emt 0:04:12]} 21. Rb3 {[%emt 0:00:45]} a5 {[%emt 0:00:01]} 22. Nxh4 {[%emt 0:11:46]} Qxh4 {[%emt 0:07:10]} 23. Rg3 {[%emt 0:00:07]} Kh8 {[%emt 0:04:23]} 24. f4 {[%emt 0:04:42]} Rg8 {[%emt 0:00:10]} 25. Kh2 {[%emt 0:02:37]} Be6 {[%emt 0:00:30]} 26. f5 {[%emt 0:02:38]} gxf5 {[%emt 0:00:09]} 27. Rf4 {[%emt 0:01:48]} Qh5 {[%emt 0:00:02]} 28. Qf1 {[%emt 0:00:35]} Rg5 {[%emt 0:01:51]} 29. Rxg5 {[%emt 0:03:36]} Qxg5 {[%emt 0:00:15]} 30. Bxf5 {[%emt 0:02:53]} Rg8 {[%emt 0:00:30]} 31. Bxe6 {[%emt 0:00:21]} fxe6 {[%emt 0:00:01]} 32. h4 {[%emt 0:02:45]} Qg7 {[%emt 0:00:54]} 33. g3 {[%emt 0:03:01]} Be7 {[%emt 0:07:26]} 34. Rf7 {[%emt 0:02:04]} Rf8 {[%emt 0:00:01]} 35. Rxf8+ {[%emt 0:00:36]} Bxf8 {[%emt 0:00:58]} 36. Qf3 {[%emt 0:01:11]} c5 {[%emt 0:01:22]} 37. Nf4 {[%emt 0:00:25]} Qf7 {[%emt 0:00:04]} 38. dxc5 {[%emt 0:02:54]} Bxc5 {[%emt 0:00:02]} 39. Qg4 {[%emt 0:00:25]} Bd4 {[%emt 0:00:08]} 40. b3 {[%emt 0:02:11]} Kh7 {[%emt 0:01:58]} 41. Qxe6 {[%emt 0:04:31]} Qxe6 {[%emt 0:00:10]} 42. Nxe6 {[%emt 0:00:02]} Bxe5 {[%emt 0:00:02]} 43. Nc5 {[%emt 0:02:23]} b6 {[%emt 0:00:02]} 44. Nd7 {[%emt 0:00:58]} Bd4 {[%emt 0:00:13]} 45. Nf8+ {[%emt 0:00:13]} Kg8 {[%emt 0:00:19]} 46. Ne6 {[%emt 0:00:03]} Be5 {[%emt 0:01:08]} 47. Kg2 {[%emt 0:00:22]} Kf7 {[%emt 0:00:27]} 48. Nd8+ {[%emt 0:00:01]} Ke8 {[%emt 0:01:07]} 49. Nc6 {[%emt 0:00:09]} Bf6 {[%emt 0:00:04]} 50. Kf3 {[%emt 0:02:42]} Kd7 {[%emt 0:00:01]} 51. Na7 {[%emt 0:00:12]} Kd6 {[%emt 0:00:05]} 52. Ke3 {[%emt 0:00:20]} Kc5 {[%emt 0:00:11]} 53. Kd3 {[%emt 0:00:32]} h5 {[%emt 0:00:05]} 54. Nc8 {[%emt 0:01:08]} Be5 {[%emt 0:02:13]} 55. Ne7 {[%emt 0:00:05]} Bxg3 {[%emt 0:00:05]} 56. Nf5 {[%emt 0:00:03]} Be5 {[%emt 0:00:05]} 57. Ne3 {[%emt 0:00:55]} d4 {[%emt 0:00:49]} 58. Nc2 {[%emt 0:01:34]} Bf6 {[%emt 0:00:03]} 59. Ke4 {[%emt 0:00:23]} Bxh4 {[%emt 0:00:02]} 60. Nxd4 {[%emt 0:00:01]} Kb4 {[%emt 0:00:11]} 0-1

[Event "10th Iberoamericano-ch 2024"]
[Site "Linares"]
[Date "2024.09.30"]
[Round "8.15"]
[White "Masague Artero, Guerau"]
[Black "Merario Alarcon, Andres"]
[Result "0-1"]
[ECO "A07"]
[WhiteElo "2251"]
[BlackElo "2408"]
[Annotator "RC"]
[PlyCount "74"]
[EventDate "2024.09.25"]
[EventType "swiss"]
[EventCountry "ESP"]
[SourceTitle "playchess.com"]
[Source "ChessBase"]
[SourceQuality "1"]
[TimeControl "5400+30"]

1. Nf3 {[%emt 0:00:04]} d5 {[%emt 0:00:34]} 2. g3 {[%emt 0:00:09]} Bg4 {[%emt 0:00:39]} 3. Bg2 {[%emt 0:00:38]} Nd7 {[%emt 0:00:28]} 4. h3 {[%emt 0:01:25]} Bxf3 {[%emt 0:00:17]} 5. Bxf3 {[%emt 0:00:08]} c6 {[%emt 0:00:27]} 6. Bg2 {[%emt 0:08:24]} e6 {[%emt 0:01:04]} 7. d3 {[%emt 0:03:17]} Bc5 {[%emt 0:00:37]} 8. d4 {[%emt 0:02:56]} Bb6 {[%emt 0:00:17]} 9. c4 {[%emt 0:09:22]} f5 {[%emt 0:02:14]} 10. Nc3 {[%emt 0:10:30]} Ngf6 {[%emt 0:01:27]} 11. g4 {[%emt 0:00:03]} dxc4 {[%emt 0:17:57]} 12. Qa4 {[%emt 0:18:52]} Bxd4 {[%emt 0:04:22]} 13. Qxc4 {[%emt 0:00:32]} Bxc3+ {[%emt 0:05:06]} 14. bxc3 {[%emt 0:00:26]} Nd5 {[%emt 0:18:30]} 15. gxf5 {[%emt 0:02:47]} O-O {[%emt 0:02:25]} 16. fxe6 {[%emt 0:06:41]} Qf6 {[%emt 0:01:54]} 17. O-O {[%emt 0:00:55]} N7b6 {[%emt 0:01:53]} 18. Qg4 {[%emt 0:09:11]} Rfe8 {[%emt 0:02:53]} 19. Bd2 {[%emt 0:06:37]} Qxe6 {[%emt 0:02:41]} 20. Qxe6+ {[%emt 0:03:47]} Rxe6 {[%emt 0:00:08]} 21. e4 {[%emt 0:02:50]} Nf6 {[%emt 0:00:30]} 22. Rfe1 {[%emt 0:00:19]} Rae8 {[%emt 0:00:44]} 23. f3 {[%emt 0:00:34]} Nc4 {[%emt 0:00:59]} 24. Bg5 {[%emt 0:00:29]} h6 {[%emt 0:03:17]} 25. Bh4 {[%emt 0:01:04]} Nh5 {[%emt 0:00:19]} 26. Rad1 {[%emt 0:01:01]} Rg6 {[%emt 0:03:33]} 27. Kf2 {[%emt 0:01:44]} Ne5 {[%emt 0:01:46]} 28. Bf1 {[%emt 0:01:40]} Rge6 {[%emt 0:06:43]} 29. Bd8 {[%emt 0:01:56]} Rf8 {[%emt 0:01:27]} 30. Re3 {[%emt 0:00:10]} Kh7 {[%emt 0:02:21]} 31. a4 {[%emt 0:01:43]} Rf7 {[%emt 0:04:13]} 32. a5 {[%emt 0:00:49]} Re8 {[%emt 0:00:18]} 33. a6 {[%emt 0:01:30]} b6 {[%emt 0:01:49]} 34. Be2 {[%emt 0:01:29]} Nf4 {[%emt 0:00:24]} 35. Bf1 {[%emt 0:00:20]} g5 {[%emt 0:00:20]} 36. h4 {[%emt 0:03:31]} Ne6 {[%emt 0:00:10]} 37. hxg5 {[%emt 0:00:20]} Ng4+ {[%emt 0:00:38]} 0-1

[Event "10th Iberoamericano-ch 2024"]
[Site "Linares"]
[Date "2024.09.30"]
[Round "8.16"]
[White "Veiga, Jose Francisco R P N"]
[Black "Palma Villanueva, Miguel Tadeo"]
[Result "1-0"]
[ECO "B00"]
[WhiteElo "2404"]
[BlackElo "2266"]
[Annotator "RC"]
[PlyCount "160"]
[EventDate "2024.09.25"]
[EventType "swiss"]
[EventCountry "ESP"]
[SourceTitle "playchess.com"]
[Source "ChessBase"]
[SourceQuality "1"]
[TimeControl "5400+30"]

1. e4 {[%emt 0:05:20]} d6 {[%emt 0:00:10]} 2. d4 {[%emt 0:00:51]} Nf6 {[%emt 0:00:05]} 3. Nc3 {[%emt 0:01:20]} e5 {[%emt 0:00:04]} 4. dxe5 {[%emt 0:01:17]} dxe5 {[%emt 0:00:05]} 5. Qxd8+ {[%emt 0:00:09]} Kxd8 {[%emt 0:00:04]} 6. Bc4 {[%emt 0:00:54]} Bb4 {[%emt 0:00:07]} 7. Bd2 {[%emt 0:04:35]} Be6 {[%emt 0:08:54]} 8. Bxe6 {[%emt 0:00:20]} fxe6 {[%emt 0:00:07]} 9. O-O-O {[%emt 0:00:26]} Nbd7 {[%emt 0:03:51]} 10. f3 {[%emt 0:01:39]} Ke7 {[%emt 0:10:59]} 11. Nge2 {[%emt 0:00:34]} a5 {[%emt 0:00:09]} 12. Kb1 {[%emt 0:01:23]} a4 {[%emt 0:09:42]} 13. Nc1 {[%emt 0:04:48]} c6 {[%emt 0:02:51]} 14. Nd3 {[%emt 0:02:44]} Bd6 {[%emt 0:00:26]} 15. Be3 {[%emt 0:01:58]} b5 {[%emt 0:06:50]} 16. Rd2 {[%emt 0:01:43]} b4 {[%emt 0:03:07]} 17. Ne2 {[%emt 0:00:26]} c5 {[%emt 0:05:32]} 18. b3 {[%emt 0:03:00]} c4 {[%emt 0:09:06]} 19. bxc4 {[%emt 0:00:11]} Rhc8 {[%emt 0:00:04]} 20. Rhd1 {[%emt 0:03:30]} Rxc4 {[%emt 0:01:10]} 21. g4 {[%emt 0:00:04]} Rc7 {[%emt 0:11:12]} 22. g5 {[%emt 0:01:40]} Nh5 {[%emt 0:00:42]} 23. Nb2 {[%emt 0:02:52]} Rc6 {[%emt 0:01:56]} 24. Nc4 {[%emt 0:02:52]} Rxc4 {[%emt 0:00:03]} 25. Rxd6 {[%emt 0:00:17]} Rc7 {[%emt 0:00:15]} 26. a3 {[%emt 0:02:30]} bxa3 {[%emt 0:06:07]} 27. Bc1 {[%emt 0:00:06]} a2+ {[%emt 0:00:29]} 28. Ka1 {[%emt 0:01:06]} a3 {[%emt 0:00:24]} 29. R6d3 {[%emt 0:00:52]} Ke8 {[%emt 0:02:16]} 30. R1d2 {[%emt 0:04:57]} Nf4 {[%emt 0:05:56]} 31. Nxf4 {[%emt 0:17:52]} exf4 {[%emt 0:00:02]} 32. Kxa2 {[%emt 0:00:06]} Ne5 {[%emt 0:02:21]} 33. Rb3 {[%emt 0:00:30]} Rac8 {[%emt 0:00:10]} 34. Kb1 {[%emt 0:05:12]} a2+ {[%emt 0:03:31]} 35. Ka1 {[%emt 0:01:48]} Rxc2 {[%emt 0:01:19]} 36. Rxc2 {[%emt 0:00:03]} Rxc2 {[%emt 0:00:06]} 37. Bxf4 {[%emt 0:03:37]} Nc6 {[%emt 0:00:24]} 38. Rb7 {[%emt 0:01:41]} Nd4 {[%emt 0:00:23]} 39. h4 {[%emt 0:04:00]} g6 {[%emt 0:05:49]} 40. Be5 {[%emt 0:01:18]} Nxf3 {[%emt 0:00:13]} 41. Bf6 {[%emt 0:02:10]} Nd2 {[%emt 0:00:06]} 42. Bb2 {[%emt 0:04:30]} Nc4 {[%emt 0:00:34]} 43. Bf6 {[%emt 0:00:57]} Nd2 {[%emt 0:02:10]} 44. Bh8 {[%emt 0:00:43]} Nxe4 {[%emt 0:00:35]} 45. Rxh7 {[%emt 0:00:18]} Nc5 {[%emt 0:00:05]} 46. Bb2 {[%emt 0:00:30]} Na4 {[%emt 0:02:03]} 47. Ba3 {[%emt 0:00:48]} Rh2 {[%emt 0:00:41]} 48. Bb4 {[%emt 0:00:56]} Rb2 {[%emt 0:00:37]} 49. Rb7 {[%emt 0:01:37]} Rh2 {[%emt 0:00:32]} 50. Re7+ {[%emt 0:01:14]} Kd8 {[%emt 0:00:04]} 51. Ra7 {[%emt 0:00:19]} Rxh4 {[%emt 0:00:57]} 52. Rxa4 {[%emt 0:00:30]} Kd7 {[%emt 0:00:28]} 53. Kxa2 {[%emt 0:00:51]} Kc6 {[%emt 0:00:04]} 54. Kb3 {[%emt 0:00:15]} Rg4 {[%emt 0:00:04]} 55. Ra5 {[%emt 0:00:40]} Rd4 {[%emt 0:00:33]} 56. Re5 {[%emt 0:01:06]} Kd7 {[%emt 0:00:05]} 57. Kc3 {[%emt 0:00:38]} Rd1 {[%emt 0:00:04]} 58. Ra5 {[%emt 0:00:18]} Kc6 {[%emt 0:00:09]} 59. Ra6+ {[%emt 0:00:41]} Kd7 {[%emt 0:00:01]} 60. Ra7+ {[%emt 0:00:17]} Kc6 {[%emt 0:00:04]} 61. Rg7 {[%emt 0:00:23]} Rg1 {[%emt 0:00:20]} 62. Rxg6 {[%emt 0:01:19]} Kd5 {[%emt 0:00:04]} 63. Rg8 {[%emt 0:00:53]} Ke5 {[%emt 0:00:09]} 64. Kc2 {[%emt 0:00:27]} Kf5 {[%emt 0:00:09]} 65. Rf8+ {[%emt 0:00:15]} Ke4 {[%emt 0:00:04]} 66. Bd2 {[%emt 0:00:05]} e5 {[%emt 0:00:03]} 67. Rf2 {[%emt 0:01:31]} Rg3 {[%emt 0:00:05]} 68. Re2+ {[%emt 0:00:47]} Kf5 {[%emt 0:00:05]} 69. Be3 {[%emt 0:00:28]} Kg4 {[%emt 0:00:46]} 70. Kd3 {[%emt 0:00:13]} Kf5 {[%emt 0:00:20]} 71. Rf2+ {[%emt 0:00:33]} Ke6 {[%emt 0:00:04]} 72. Rf6+ {[%emt 0:00:04]} Kd5 {[%emt 0:00:04]} 73. Rf1 {[%emt 0:00:17]} e4+ {[%emt 0:00:14]} 74. Ke2 {[%emt 0:00:17]} Rg2+ {[%emt 0:00:08]} 75. Rf2 {[%emt 0:00:05]} Rg4 {[%emt 0:00:20]} 76. Rf5+ {[%emt 0:00:26]} Ke6 {[%emt 0:00:10]} 77. Rf6+ {[%emt 0:00:54]} Ke5 {[%emt 0:00:04]} 78. Kf2 {[%emt 0:00:52]} Kd5 {[%emt 0:00:41]} 79. Rh6 {[%emt 0:00:40]} Ke5 {[%emt 0:01:00]} 80. Rh2 {[%emt 0:00:34]} Kd5 1-0